bitfinex/quotes_ETHUSD_20241124
["timestamp","ask_amount","ask_price","bid_price","bid_amount"]
[1732491283115,3.51965,3367.4,3366.6,0.0658]
[1732491283116,2.96975,3367.3,3366.6,0.0658]
[1732491283271,2.97002,3367.0,3366.6,0.0658]
[1732491283669,2.96983,3367.2,3366.6,0.0658]
[1732491283885,2.96966,3367.4,3366.6,0.0658]
[1732491284082,2.96981,3367.3,3366.6,0.0658]
[1732491284417,2.96985,3367.2,3366.6,0.0658]
[1732491284583,2.97,3367.0,3366.6,0.0658]
[1732491286497,2.96983,3367.2,3366.0,0.0658]
[1732491286498,2.97044,3366.5,3366.0,0.0658]
[1732491286688,2.97053,3366.4,3365.6,0.0658]
[1732491286885,0.7681,3366.6,3365.6,0.30753039]
[1732491287173,3.73851,3366.6,3365.6,0.30753039]
[1732491287372,0.7681,3366.6,3365.6,0.30753039]
[1732491287581,0.55,3366.7,3365.7,0.27248343]
[1732491288284,2.97028,3366.7,3365.7,0.27248343]
[1732491288710,5.97035,3366.6,3365.7,0.27248343]
[1732491288913,5.97035,3366.6,3365.6,0.0658]
[1732491288914,5.97035,3366.6,3365.8,0.27555873]
[1732491289434,2.97096,3366.0,3365.3,0.06859171]
[1732491290523,0.7819,3366.3,3365.3,0.06859171]
[1732491290524,0.55,3366.2,3365.3,0.06859171]
[1732491290700,2.97081,3366.1,3365.3,0.06859171]
[1732491291086,0.55,3366.2,3365.3,0.06859171]
[1732491291303,3.0,3366.6,3365.3,0.34689524]
[1732491291613,3.52064,3366.3,3365.3,0.31718127]
[1732491291826,3.52064,3366.3,3365.3,0.06859171]
[1732491292136,2.97036,3366.6,3365.4,2.41730388]
[1732491292447,2.97057,3366.4,3365.6,0.0658]
[1732491292646,2.9707,3366.2,3365.3,0.00279171]
[1732491292815,2.97114,3365.8,3365.3,0.00279171]
[1732491293020,0.55,3366.2,3365.3,0.00279171]
[1732491293241,2.97112,3365.8,3365.3,0.00279171]
[1732491293450,3.52091,3366.0,3365.3,0.00279171]
[1732491293744,2.97037,3366.6,3365.4,2.48310388]
[1732491293906,2.97037,3366.6,3365.5,0.24858956]
[1732491294902,2.97045,3366.5,3365.5,0.24858956]
[1732491296019,3.0,3367.4,3365.6,0.0658]
[1732491296020,3.79179,3367.1,3365.6,0.0658]
[1732491296342,2.96982,3367.2,3365.8,0.0658]
[1732491296749,2.96982,3367.2,3365.9,0.0658]
[1732491297112,3.79145,3367.4,3366.0,0.02970516]
[1732491297321,0.8218,3367.4,3366.1,0.0658]
[1732491297614,2.96976,3367.3,3366.1,0.0658]
[1732491298323,2.96985,3367.2,3366.1,0.0658]
[1732491298644,2.96993,3367.1,3366.1,0.0658]
[1732491299230,2.97002,3367.0,3366.1,0.0658]
[1732491299548,2.96993,3367.1,3366.1,0.0658]
[1732491300312,0.55,3367.3,3366.1,0.0658]
[1732491300657,3.76946,3367.7,3366.1,0.0658]
[1732491300871,2.96949,3367.6,3366.2,0.0658]
[1732491301016,3.76946,3367.7,3366.2,0.0658]
[1732491301017,2.96956,3367.5,3366.2,0.0658]
[1732491301215,0.673902,3367.5,3366.2,0.0658]
[1732491301439,0.8,3367.7,3366.2,0.0658]
[1732491301440,2.96983,3367.2,3366.2,0.0658]
[1732491301610,2.96985,3367.2,3366.2,0.0658]
[1732491301947,0.55,3367.1,3366.2,0.0658]
[1732491302357,0.55,3367.3,3366.2,0.0658]
[1732491302558,0.55,3367.0,3366.2,0.0658]
[1732491302715,0.55,3366.9,3366.2,0.0658]
[1732491303053,0.55,3366.6,3366.2,0.0658]
[1732491303434,2.97036,3366.6,3366.2,0.0658]
[1732491303629,2.97036,3366.6,3365.3,0.00279171]
[1732491303630,0.55,3366.3,3365.8,0.0658]
[1732491303830,0.54720829,3366.3,3365.8,0.0658]
[1732491304255,2.97046,3366.5,3365.8,0.0658]
[1732491305145,2.97053,3366.4,3365.8,0.0658]
[1732491305667,2.97078,3366.2,3365.0,2.41730388]
[1732491305848,0.55,3365.8,3365.1,0.0658]
[1732491306164,0.55,3365.6,3364.4,0.0658]
[1732491306370,0.55,3365.3,3364.4,0.0658]
[1732491306523,2.97194,3364.8,3364.4,0.0658]
[1732491306872,2.97194,3364.8,3363.6,0.3091626]
[1732491306873,0.55,3364.3,3363.6,0.3091626]
[1732491307170,0.8291,3364.8,3363.5,0.0658]
[1732491307476,0.55,3364.5,3363.5,0.0658]
[1732491307668,1.040123,3364.5,3363.1,0.0658]
[1732491307869,0.55,3363.9,3363.1,0.0658]
[1732491308032,0.55,3363.7,3363.1,0.0658]
[1732491308541,3.5229,3363.8,3363.1,0.0658]
[1732491308738,0.55,3363.5,3363.1,0.0658]
[1732491309135,0.55,3363.7,3363.1,0.0658]
[1732491309348,0.55,3363.6,3363.1,0.0658]
[1732491309550,3.52302,3363.6,3363.1,0.0658]
[1732491309752,3.52302,3363.6,3362.2,0.0658]
[1732491309753,4.252875,3363.6,3362.2,0.0658]
[1732491310061,0.55,3363.4,3362.2,0.09553924]
[1732491310269,0.55,3363.4,3362.1,2.41730388]
[1732491310270,3.77544,3363.9,3362.3,0.0658]
[1732491310428,0.55,3363.8,3362.6,0.0658]
[1732491310628,2.97295,3363.7,3362.7,0.24831039]
[1732491310866,2.97319,3363.4,3362.6,0.0658]
[1732491311167,0.55,3363.8,3361.9,0.0658]
[1732491311375,0.55,3362.9,3361.9,0.36877346]
[1732491311578,0.55,3362.9,3362.4,0.29739]
[1732491311937,0.55,3362.9,3362.7,0.29737]
[1732491312131,2.97319,3363.4,3361.9,0.66621346]
[1732491312132,0.55,3363.7,3362.9,0.29735]
[1732491312845,2.97293,3363.7,3362.9,0.29735]
[1732491313158,0.55,3363.6,3363.1,0.29734]
[1732491313477,3.7917,3364.2,3363.3,0.29732]
[1732491313643,3.7917,3364.2,3363.2,0.29733]
[1732491313844,0.7721,3364.7,3363.7,0.0658]
[1732491314169,3.74421,3364.7,3363.7,0.36309]
[1732491314381,2.97228,3364.5,3363.7,0.36309]
[1732491314669,0.7721,3364.7,3363.3,2.41730388]
[1732491314887,3.72488,3365.1,3364.0,0.0658]
[1732491315169,2.97157,3365.3,3364.0,0.0658]
[1732491315374,2.97157,3365.3,3364.2,0.29723]
[1732491315588,2.97157,3365.3,3364.0,0.34383739]
[1732491315868,0.8057,3365.4,3364.4,0.29722]
[1732491316070,0.8057,3365.4,3364.0,0.64109739]
[1732491316235,2.97209,3364.7,3364.0,0.36306]
[1732491316833,2.97227,3364.5,3364.0,0.0658]
[1732491317077,2.97227,3364.5,3363.6,0.0658]
[1732491317078,0.55,3364.4,3363.6,0.0658]
[1732491317265,3.52232,3364.4,3363.6,0.36309]
[1732491317577,0.7915,3364.7,3364.0,0.29726]
[1732491317578,0.55,3364.6,3364.0,0.29726]
[1732491317735,3.52212,3364.6,3363.7,0.29729]
[1732491317937,0.55,3364.6,3363.9,0.29727]
[1732491318571,0.55,3364.6,3363.8,0.29728]
[1732491318771,3.5222,3364.6,3363.8,0.29728]
[1732491318937,4.578566,3364.6,3363.1,0.29734]
[1732491319140,2.97291,3363.7,3363.2,0.0658]
[1732491319338,0.55,3363.8,3362.9,0.36316]
[1732491319339,0.55,3363.5,3362.9,0.36316]
[1732491319746,0.55,3363.3,3362.8,0.29736]
[1732491319949,0.55,3363.3,3363.0,0.29735]
[1732491320240,2.97294,3363.7,3363.0,0.29735]
[1732491320241,0.55,3363.6,3363.0,0.29735]
[1732491320984,0.55,3363.6,3362.8,0.29736]
[1732491320985,2.97322,3363.4,3362.6,0.36318]
[1732491321181,3.5234,3363.2,3362.6,0.0658]
[1732491321351,0.55,3363.2,3362.6,0.0658]
[1732491321538,2.97346,3363.1,3362.6,0.0658]
[1732491321739,0.55,3363.0,3362.6,0.0658]
[1732491321968,0.55,3363.2,3362.6,0.0658]
[1732491322281,0.55,3363.3,3362.7,0.29737]
[1732491322838,0.55,3363.1,3362.6,0.0658]
[1732491323244,0.55,3363.3,3362.6,0.0658]
[1732491323459,2.97324,3363.4,3362.6,0.0658]
[1732491323746,0.55,3363.3,3362.6,0.36318]
[1732491323947,0.55,3363.3,3362.6,0.0658]
[1732491324168,0.55,3363.3,3362.6,0.36318]
[1732491324586,0.55,3363.3,3362.7,0.29737]
[1732491325077,0.55,3363.3,3362.6,0.36318]
[1732491325278,0.55,3363.1,3362.6,0.0658]
[1732491325946,0.55,3363.3,3362.6,0.0658]
[1732491326149,2.973,3363.6,3362.6,0.0658]
[1732491326369,3.52311,3363.5,3362.7,0.54568039]
[1732491326678,3.52311,3363.5,3362.6,0.0658]
[1732491326679,0.55,3363.1,3362.6,0.0658]
[1732491326885,3.52344,3363.1,3362.6,0.0658]
[1732491327382,2.97354,3363.0,3362.6,0.0658]
[1732491327564,0.55,3363.2,3362.6,0.0658]
[1732491327766,0.55,3363.0,3362.6,0.0658]
[1732491328459,0.55,3362.9,3362.2,0.36321]
[1732491328640,0.55,3362.9,3362.2,0.0658]
[1732491328989,0.55,3362.6,3362.2,0.0658]
[1732491329895,0.55,3362.8,3362.2,0.0658]
[1732491330043,2.97371,3362.8,3362.2,0.0658]
[1732491330250,3.52382,3362.7,3362.2,0.0658]
[1732491330451,0.55,3362.7,3362.2,0.0658]
[1732491330956,0.55,3362.7,3361.3,2.41730388]
[1732491330957,0.55,3362.3,3361.9,0.0658]
[1732491331148,3.52399,3362.5,3361.9,0.0658]
[1732491331356,0.55,3362.6,3361.9,0.0658]
[1732491331781,0.55,3362.6,3360.2,0.1]
[1732491331782,2.97433,3362.1,3361.0,0.0658]
[1732491331977,0.55,3362.0,3361.1,0.24831039]
[1732491332371,3.52448,3362.0,3361.1,0.24831039]
[1732491332684,2.97453,3361.9,3361.1,0.24831039]
[1732491333067,0.55,3362.1,3361.1,0.24831039]
[1732491333274,0.55,3362.1,3361.0,0.0658]
[1732491333275,0.55,3361.8,3361.0,0.0658]
[1732491333481,0.55,3361.5,3361.0,0.0658]
[1732491333790,0.55,3361.7,3361.1,0.06891453]
[1732491333989,0.55,3361.7,3361.0,0.0658]
[1732491334150,2.97478,3361.6,3361.0,0.0658]
[1732491334351,0.55,3361.5,3361.0,0.0658]
[1732491334588,0.55,3361.7,3361.0,0.0658]
[1732491335343,0.55,3361.7,3361.1,0.06908836]
[1732491336544,2.97512,3361.2,3361.1,0.06908836]
[1732491336751,4.34802,3361.2,3361.1,0.06908836]
[1732491336945,0.55,3361.1,3360.1,0.0658]
[1732491337254,0.55,3360.7,3360.1,0.0658]
[1732491337955,0.55,3360.7,3360.2,0.06482186]
[1732491338375,0.55,3360.9,3360.1,0.0658]
[1732491338556,0.55,3360.9,3360.3,0.06482186]
[1732491338758,0.55,3360.9,3360.1,0.0658]
[1732491338759,0.55,3361.0,3360.1,0.0658]
[1732491339051,0.55,3361.1,3360.1,0.0658]
[1732491339264,0.55,3361.1,3360.2,0.06482186]
[1732491339788,3.52529,3361.1,3360.2,0.06482186]
[1732491339951,1.879819,3361.1,3360.2,0.06482186]
[1732491340155,0.55,3361.1,3360.2,0.06482186]
[1732491340564,0.55,3360.8,3360.2,0.06482186]
[1732491340881,0.55,3360.8,3360.1,0.0658]
[1732491341089,3.52533,3361.0,3360.1,0.0658]
[1732491341486,3.52533,3361.0,3360.2,0.06482186]
[1732491341793,3.52533,3361.0,3360.1,0.0658]
[1732491342505,2.97469,3361.7,3360.3,0.0658]
[1732491342649,2.9749,3361.5,3360.3,0.32059257]
[1732491343084,2.9747,3361.7,3360.3,0.32059257]
[1732491343255,2.97486,3361.5,3360.4,0.27378965]
[1732491343469,2.97505,3361.3,3360.4,0.27378965]
[1732491343653,2.97571,3360.6,3359.5,0.0658]
[1732491343877,0.55,3360.5,3359.5,0.0658]
[1732491344206,0.55,3360.1,3359.6,0.06292666]
[1732491344587,0.55,3360.4,3359.6,0.06292666]
[1732491344931,0.55,3360.2,3359.6,0.06292666]
[1732491345082,0.55,3360.4,3359.6,0.06292666]
[1732491345690,0.55,3360.1,3359.6,0.06292666]
[1732491346816,0.55,3360.3,3359.6,0.06292666]
[1732491347121,0.55,3360.0,3359.6,0.06292666]
[1732491347328,0.55,3360.1,3359.6,0.06292666]
[1732491348519,0.55,3360.4,3359.6,0.06292666]
[1732491349023,0.55,3360.5,3359.5,0.0658]
[1732491349228,0.55,3360.0,3359.6,0.06358664]
[1732491349724,0.55,3359.8,3359.6,0.06358664]
[1732491350085,0.55,3359.8,3359.2,0.0658]
[1732491350311,0.55,3358.5,3357.7,0.0658]
[1732491350520,2.97776,3358.3,3357.7,0.0658]
[1732491350826,0.55,3358.2,3356.5,0.0658]
[1732491351029,0.55,3357.9,3356.6,0.0658]
[1732491351343,0.7564,3358.6,3356.6,0.0658]
[1732491351344,0.55,3357.5,3356.6,0.0658]
[1732491351650,3.55,3358.4,3356.8,0.0658]
[1732491351802,0.55,3358.2,3356.8,0.0658]
[1732491352221,0.55,3358.3,3356.8,0.0658]
[1732491352444,3.52839,3357.6,3356.8,0.0658]
[1732491352629,3.961239,3357.6,3356.8,0.0658]
[1732491353206,0.55,3357.4,3356.8,0.0658]
[1732491353406,2.97852,3357.4,3356.8,0.0658]
[1732491353644,3.961209,3357.6,3356.8,0.0658]
[1732491353809,0.55,3358.0,3356.8,0.0658]
[1732491354135,0.55,3357.8,3356.8,0.0658]
[1732491354332,0.55,3358.0,3356.8,0.0658]
[1732491354507,0.55,3358.1,3356.8,0.0658]
[1732491354706,3.52789,3358.1,3356.8,0.0658]
[1732491355011,2.97831,3357.7,3356.8,0.0658]
[1732491355238,3.52843,3357.5,3356.8,0.0658]
[1732491356259,0.55,3357.4,3356.8,0.0658]
[1732491356861,0.55,3357.7,3356.8,0.0658]
[1732491357167,0.8001,3358.5,3356.8,0.0658]
[1732491357448,0.8001,3358.5,3356.9,0.052933]
[1732491357606,2.97762,3358.4,3356.9,0.052933]
[1732491357806,0.8001,3358.5,3356.9,0.052933]
[1732491358013,0.8001,3358.5,3357.0,0.0658]
[1732491358546,0.8001,3358.5,3357.1,0.052933]
[1732491358845,2.41730388,3359.2,3357.1,0.052933]
[1732491358846,0.8001,3358.9,3357.2,0.0658]
[1732491359047,2.97739,3358.7,3357.3,0.05270676]
[1732491359210,2.97748,3358.6,3357.3,0.05270676]
[1732491359405,0.377736,3358.7,3357.3,0.05270676]
[1732491359610,0.55,3358.6,3357.4,0.0658]
[1732491359936,3.77683,3359.4,3357.4,0.0658]
[1732491360104,3.77683,3359.4,3357.3,2.41730388]
[1732491360105,0.67821873,3359.3,3357.6,0.0658]
[1732491360306,0.8001,3359.8,3357.8,0.0658]
[1732491360608,0.8001,3359.8,3357.9,0.05265022]
[1732491360849,2.97655,3359.6,3358.0,0.0658]
[1732491361017,0.8001,3359.8,3357.8,3.0]
[1732491361018,0.8001,3359.8,3358.2,0.0658]
[1732491361216,3.77647,3359.8,3358.3,0.0658]
[1732491361452,0.8001,3359.8,3358.4,0.05304988]
[1732491361635,1.23597565,3359.8,3358.6,0.28929506]
[1732491361952,1.23597565,3359.8,3358.3,0.0658]
[1732491362111,2.97683,3359.3,3358.3,0.0658]
[1732491362312,2.97664,3359.5,3358.4,0.05304988]
[1732491362515,0.55,3359.3,3358.3,0.0658]
[1732491362722,0.55,3358.9,3358.3,0.0658]
[1732491363544,3.55840645,3360.1,3358.3,0.0658]
[1732491363857,3.0,3359.9,3358.4,0.05297597]
[1732491364062,2.97602,3360.2,3358.6,0.0658]
[1732491364242,3.283302,3360.6,3358.6,0.0658]
[1732491364551,0.7072182,3360.5,3358.8,0.0658]
[1732491364850,0.7072182,3360.5,3358.9,0.05273254]
[1732491365052,0.307562,3360.6,3358.9,0.05273254]
[1732491365053,2.976,3360.3,3358.9,0.05273254]
[1732491365353,0.7961,3360.2,3358.9,0.05273254]
[1732491365719,0.7961,3360.2,3358.8,0.0658]
[1732491366015,0.7961,3360.2,3358.9,0.05274558]
[1732491366216,1.71261639,3360.2,3358.8,0.0658]
[1732491366438,0.55,3360.1,3358.9,0.05274558]
[1732491366671,0.55,3360.1,3358.8,0.0658]
[1732491367077,0.55,3360.4,3358.9,0.05274558]
[1732491367288,0.55,3360.2,3359.0,0.0658]
[1732491367650,0.55,3360.0,3359.0,0.0658]
[1732491367847,0.55,3359.8,3359.0,0.0658]
[1732491368587,3.52639,3359.8,3359.0,0.0658]
[1732491368962,0.55,3359.6,3359.0,0.0658]
[1732491369253,3.52659,3359.6,3359.0,0.0658]
[1732491369576,0.55,3359.4,3359.0,0.0658]
[1732491369780,0.55,3359.2,3357.8,0.0658]
[1732491370101,3.7328727,3359.2,3357.9,0.05086136]
[1732491370289,3.55,3358.9,3357.9,0.05086136]
[1732491370452,3.55,3358.6,3357.8,0.0658]
[1732491370791,3.0,3358.4,3357.8,0.0658]
[1732491371079,0.55,3358.6,3357.8,0.0658]
[1732491371279,0.55,3359.2,3357.8,0.0658]
[1732491371491,1.285987,3359.2,3357.8,0.0658]
[1732491371639,1.285987,3359.2,3357.9,0.05133517]
[1732491371835,1.285987,3359.2,3358.0,0.0658]
[1732491372387,3.55,3358.8,3358.0,0.0658]
[1732491372677,0.55,3358.8,3358.0,0.0658]
[1732491372881,0.55,3358.6,3358.0,0.0658]
[1732491373050,0.55,3357.9,3356.9,0.0658]
[1732491373372,1.200576,3357.9,3357.0,0.05137866]
[1732491373574,0.55,3357.5,3357.0,0.05137866]
[1732491373784,2.97841,3357.5,3357.0,0.05137866]
[1732491373981,6.52828,3357.7,3357.0,0.05137866]
[1732491374193,6.52828,3357.7,3356.9,0.0658]
[1732491374487,3.55,3357.8,3356.9,0.0658]
[1732491374646,3.0,3357.7,3357.0,0.05165266]
[1732491374849,0.55,3357.6,3356.9,0.0658]
[1732491375044,0.55,3357.6,3357.0,0.05165701]
[1732491375546,0.55,3357.9,3357.0,0.05165701]
[1732491375790,0.55,3357.7,3357.0,0.05165701]
[1732491376653,0.55,3357.7,3356.9,0.0658]
[1732491377055,2.97831,3357.6,3356.9,0.0658]
[1732491377263,0.55,3357.5,3357.0,0.05165701]
[1732491377497,0.55,3357.5,3356.9,0.0658]
[1732491378190,3.52843,3357.5,3356.9,0.0658]
[1732491378488,0.55,3357.1,3356.3,0.0658]
[1732491378880,0.55,3357.1,3356.4,0.05010747]
[1732491379078,2.97886,3357.0,3356.4,0.05010747]
[1732491379252,2.97867,3357.2,3356.4,0.05010747]
[1732491379253,0.55,3356.8,3356.4,0.05010747]
[1732491379458,0.55,3356.8,3356.3,0.0658]
[1732491380256,0.55,3357.0,3356.3,0.0658]
[1732491380557,0.55,3356.9,3356.3,0.0658]
[1732491381179,0.55,3356.7,3356.3,0.0658]
[1732491381390,2.97947,3356.3,3355.9,0.0658]
[1732491381594,0.55,3356.3,3355.9,0.0658]
[1732491382092,3.52947,3356.3,3354.9,2.41730388]
[1732491382261,3.52947,3356.3,3355.5,0.0658]
[1732491383099,0.55,3356.7,3355.5,0.0658]
[1732491383302,2.41730388,3357.6,3356.3,0.0658]
[1732491383303,0.55,3356.9,3356.3,0.0658]
[1732491383475,0.902891,3356.9,3356.3,0.0658]
[1732491383658,2.97784,3358.2,3356.3,0.0658]
[1732491383994,2.97832,3357.6,3356.4,0.0462148]
[1732491384202,2.97849,3357.4,3356.4,0.0462148]
[1732491384363,2.97836,3357.6,3356.4,0.0462148]
[1732491384700,2.97811,3357.9,3356.5,0.0658]
[1732491384997,2.9783,3357.7,3356.5,0.0658]
[1732491385296,2.97812,3357.9,3356.7,0.0658]
[1732491385506,3.75241857,3357.9,3356.7,0.0658]
[1732491385692,3.75241857,3357.9,3356.8,0.04597101]
[1732491385889,3.75241857,3357.9,3356.7,0.0658]
[1732491386395,2.97833,3357.6,3356.8,0.04597101]
[1732491386604,0.297833,3357.5,3356.8,0.04597101]
[1732491386899,0.297833,3357.5,3356.7,0.0658]
[1732491387109,0.297833,3357.5,3356.9,0.04580563]
[1732491387280,3.52805,3357.9,3356.7,0.0658]
[1732491387477,0.55,3357.9,3356.7,0.0658]
[1732491387689,0.55,3357.9,3356.8,0.04580563]
[1732491387880,1.62530713,3357.9,3356.8,0.04580563]
[1732491388192,1.62530713,3357.9,3356.7,0.0658]
[1732491388514,1.62530713,3357.9,3356.8,0.04580563]
[1732491389015,0.55,3357.7,3356.7,0.0658]
[1732491389317,0.55,3357.7,3356.8,0.04580563]
[1732491389521,0.55,3357.8,3356.8,0.04580563]
[1732491389692,0.55,3357.8,3356.7,0.0658]
[1732491390705,0.55,3357.9,3356.7,0.0658]
[1732491391094,0.55,3357.9,3356.8,0.04580563]
[1732491391283,1.62530613,3357.9,3356.7,0.0658]
[1732491391594,0.55,3357.9,3356.7,0.0658]
[1732491391921,0.55,3357.9,3356.8,0.04580563]
[1732491392216,3.0,3358.4,3357.0,0.0658]
[1732491392416,2.97778,3358.2,3357.2,0.0658]
[1732491392593,0.8023,3358.5,3357.2,0.0658]
[1732491392793,2.97787,3358.1,3357.2,0.0658]
[1732491393012,2.97787,3358.1,3357.3,0.04557063]
[1732491393322,2.97769,3358.3,3357.2,0.0658]
[1732491393506,0.55,3358.3,3357.4,0.04557063]
[1732491393691,0.55,3358.1,3357.2,0.0658]
[1732491393893,3.52795,3358.1,3357.5,0.04557063]
[1732491394206,3.52795,3358.1,3357.2,0.0658]
[1732491394584,3.52795,3358.1,3357.3,0.04557063]
[1732491394794,2.97767,3358.4,3357.3,0.04557063]
[1732491394795,0.55,3358.3,3357.3,0.04557063]
[1732491395118,0.55,3358.3,3357.2,0.0658]
[1732491395119,0.927997,3358.3,3357.2,0.0658]
[1732491395288,0.60559042,3358.8,3357.4,0.04557063]
[1732491395488,2.97734,3358.7,3357.5,0.0658]
[1732491395690,2.97743,3358.6,3357.5,0.0658]
[1732491395989,2.97731,3358.8,3357.6,0.04540094]
[1732491396298,2.97679,3359.4,3357.9,0.0658]
[1732491396497,2.97656,3359.6,3357.9,0.0658]
[1732491396693,2.97673,3359.4,3358.0,0.04532698]
[1732491397023,2.97673,3359.4,3358.1,0.0658]
[1732491397024,3.572209,3359.3,3358.1,0.0658]
[1732491397191,2.9767,3359.5,3358.1,0.0658]
[1732491397596,2.97637,3359.8,3358.3,0.0658]
[1732491397809,0.675174,3359.9,3358.4,0.0658]
[1732491398041,2.97619,3360.0,3358.4,0.0658]
[1732491398184,0.7969,3360.2,3358.6,0.0658]
[1732491398384,2.97642,3359.8,3358.6,0.0658]
[1732491398587,2.97696,3359.2,3358.6,0.0658]
[1732491398826,0.7969,3360.2,3358.6,0.0658]
[1732491399024,2.97689,3359.3,3358.6,0.0658]
[1732491399225,2.97708,3359.0,3358.6,0.0658]
[1732491399520,0.55,3358.9,3358.6,0.0658]
[1732491399738,3.52693,3359.2,3358.6,0.0658]
[1732491400025,1.280072,3359.2,3358.6,0.0658]
[1732491400393,2.97723,3358.9,3357.5,0.0658]
[1732491400703,3.52725,3358.8,3357.6,0.04532698]
[1732491400915,3.52725,3358.8,3357.7,0.0658]
[1732491400916,2.97753,3358.5,3357.7,0.0658]
[1732491401229,0.55,3358.4,3357.7,0.0658]
[1732491401398,0.55,3358.8,3357.7,0.0658]
[1732491401601,0.55,3358.8,3357.8,0.04532698]
[1732491401784,0.55,3358.8,3357.9,0.0658]
[1732491401985,3.879977,3358.8,3357.9,0.0658]
[1732491402218,0.55,3358.4,3357.9,0.0658]
[1732491402809,0.55,3358.3,3357.9,0.0658]
[1732491403016,3.52776,3358.3,3357.9,0.0658]
[1732491403206,3.52776,3358.3,3357.1,0.0658]
[1732491403399,0.55,3358.1,3357.1,0.30753039]
[1732491403618,0.55,3358.1,3357.2,0.04495285]
[1732491404127,0.55,3358.3,3357.3,0.0658]
[1732491404291,0.8168,3358.6,3357.4,0.0658]
[1732491404292,0.55,3358.5,3357.4,0.0658]
[1732491404493,0.55,3358.3,3357.4,0.0658]
[1732491404900,2.97752,3358.5,3357.4,0.0658]
[1732491405128,0.55,3358.4,3357.4,0.0658]
[1732491405792,0.679386,3358.9,3357.4,2.41730388]
[1732491406125,3.0,3358.9,3357.5,0.11075285]
[1732491406291,3.0,3359.1,3357.5,0.0658]
[1732491406492,2.97744,3358.6,3357.6,0.04495285]
[1732491406802,2.97741,3358.7,3357.6,0.04495285]
[1732491407207,0.55,3358.6,3357.6,0.04495285]
[1732491407404,0.55,3358.9,3357.7,0.0658]
[1732491407789,0.55,3358.9,3357.4,2.41730388]
[1732491407790,2.97722,3358.9,3357.9,0.0658]
[1732491407991,0.55,3358.2,3357.6,0.0658]
[1732491408191,3.52787,3358.1,3358.0,0.04495285]
[1732491408392,3.52787,3358.1,3357.6,0.0658]
[1732491408393,3.52802,3358.0,3357.6,0.0658]
[1732491408605,0.55,3357.8,3357.6,0.0658]
[1732491408805,3.52822,3357.7,3356.3,0.0658]
[1732491409033,0.55,3357.6,3356.5,0.0658]
[1732491409406,0.55,3357.8,3356.7,0.0658]
[1732491410140,3.52817,3357.8,3356.8,0.04486585]
[1732491411219,0.55,3357.8,3356.8,0.04486585]
[1732491412445,2.97825,3357.7,3356.8,0.04486585]
[1732491412837,0.55,3357.8,3356.8,0.04486585]
[1732491413216,0.55,3358.0,3356.8,0.04486585]
[1732491414108,2.97815,3357.8,3356.8,0.04486585]
[1732491414428,0.55,3357.7,3356.8,0.04486585]
[1732491416146,3.528,3358.0,3356.8,0.04486585]
[1732491416552,2.9785,3357.4,3356.8,0.04486585]
[1732491416761,0.55,3357.3,3356.8,0.04486585]
[1732491416916,3.52879,3357.1,3356.8,0.04486585]
[1732491417105,2.97893,3356.9,3356.3,0.0658]
[1732491417311,2.97893,3356.9,3356.4,0.04525302]
[1732491417553,0.55,3356.8,3356.4,0.04525302]
[1732491417853,0.55,3356.8,3356.3,0.0658]
[1732491418054,3.52903,3356.8,3356.3,0.0658]
[1732491418751,3.52892,3357.0,3356.3,0.0658]
[1732491419053,3.0,3357.7,3356.4,0.0658]
[1732491419054,0.816,3357.7,3356.4,0.0658]
[1732491419255,3.25558376,3357.6,3356.5,0.26321779]
[1732491419422,2.97833,3357.6,3356.5,0.30897564]
[1732491419617,2.97833,3357.6,3356.6,0.27920795]
[1732491419822,2.97833,3357.6,3356.5,0.04575785]
[1732491419823,3.79423,3357.7,3356.5,0.04575785]
[1732491420025,0.60556337,3357.8,3356.4,0.0658]
[1732491420026,3.60556337,3357.8,3356.4,0.0658]
[1732491420224,0.55,3357.6,3356.5,0.32901779]
[1732491420525,0.27721134,3357.7,3356.5,0.32901779]
[1732491420526,2.97746,3358.6,3357.2,0.0658]
[1732491420725,0.72061564,3358.5,3357.2,0.0658]
[1732491420969,0.27715986,3358.4,3357.5,2.41730388]
[1732491421260,3.78697,3359.3,3358.0,0.0658]
[1732491421463,0.27707296,3359.2,3358.4,0.0658]
[1732491421623,0.72027793,3359.7,3358.4,0.0658]
[1732491421824,0.8101,3359.8,3358.5,0.04529652]
[1732491422172,1.24949066,3360.2,3358.6,0.0658]
[1732491422326,3.25306219,3360.1,3358.6,0.11058766]
[1732491422663,0.27696219,3360.0,3358.6,0.11058766]
[1732491423177,3.25317219,3360.0,3358.6,0.11058766]
[1732491423534,0.55,3359.9,3358.6,0.11058766]
[1732491423738,0.8063,3360.2,3358.7,2.75319369]
[1732491423942,0.44274593,3360.3,3358.9,0.0658]
[1732491424123,1.188871,3360.9,3359.8,0.0658]
[1732491424626,2.97542,3360.9,3359.9,0.04444427]
[1732491424843,0.595071,3360.8,3359.8,0.0658]
[1732491425260,2.97504,3361.3,3359.8,0.0658]
[1732491425726,2.97521,3361.1,3359.9,0.04363117]
[1732491425931,2.97531,3361.0,3359.8,0.0658]
[1732491426269,0.297531,3360.9,3359.9,0.04363117]
[1732491426644,0.55,3360.8,3359.9,0.04363117]
[1732491426965,0.55,3361.1,3360.1,0.0658]
[1732491427267,2.97454,3361.9,3360.4,2.41730388]
[1732491427573,2.9745,3361.9,3360.5,0.0658]